Cogmind - Beta 10.2 @@@ ROGUE MODE // 2022.02.21 @ 19:05:50 Player: russur Result: Self-destructed Performance ------------- Evolutions (1) 500 Regions Visited (2) 400 Robots Destroyed (19) 95 Value Destroyed (282) 282 Prototype IDs (0) 0 Alien Tech Used (0) 0 Bonus (0) 0 TOTAL SCORE: 1277 Bonus ------- None Cogmind --------- Core Integrity 344/400 Matter 300/300 Energy 125/125 System Corruption 0% Temperature Cool (0) Movement Treading (160) Location -9/Materials Parts ------- > --- POWER (1) -------- Light Ion Engine > --- PROPULSION (2) --- Light Treads Light Treads > --- UTILITY (2) ------ Improved Signal Interpreter Transport Network Coupler > --- WEAPON (4) ------- Plasma Cutter Plasma Cutter Plasma Cutter Plasma Cutter > --- INVENTORY (4) ---- Light Ion Engine EM Pulse Gun EMP Blaster Grenade Launcher Peak State ------------ > --- POWER ------------ Light Ion Engine > --- PROPULSION ------- Aluminum Leg Aluminum Leg > --- UTILITY ---------- Improved Signal Interpreter Transport Network Coupler > --- WEAPON ----------- Plasma Cutter Plasma Cutter Plasma Cutter Plasma Cutter > --- INVENTORY -------- Light Ion Engine EM Pulse Gun EMP Blaster Grenade Launcher [Rating: 14] Favorites ----------- Power Ion Engine Engine Ion Engine Propulsion Aluminum Leg Treads Light Treads Leg Aluminum Leg Utility Improved Signal Interpreter Device Sensor Array Storage Small Storage Unit Processor Improved Signal Interpreter Weapon Plasma Cutter Energy Gun EM Pulse Gun Ballistic Gun Autogun Special Weapon Plasma Cutter Build | -11 -10 -9 ------- Run | Scr Mat Mat Slots Evolved 2 | . . 2 Power . | . . . Propulsion . | . . . Utility . | . . . Weapon 2 | . . 2 Parts Attached 29 | 6 9 14 Power 2 | 1 . 1 Engine 2 | 1 . 1 Core . | . . . Reactor . | . . . Propulsion 5 | 2 1 2 Treads 2 | . . 2 Leg 3 | 2 1 . Wheel . | . . . Hover . | . . . Flight . | . . . Utility 6 | 1 4 1 Device 1 | . 1 . Storage 1 | 1 . . Processor 4 | . 3 1 Hackware . | . . . Protection . | . . . Artifact . | . . . Weapon 16 | 2 4 10 Energy Gun 7 | 1 3 3 Energy Cannon . | . . . Ballistic Gun 5 | 1 1 3 Ballistic Cannon . | . . . Launcher . | . . . Special Weapon 4 | . . 4 Impact Weapon . | . . . Slashing Weapon . | . . . Piercing Weapon . | . . . Special Melee Weapon . | . . . Unidentified Prototypes . | . . . Parts Lost 5 | . . 5 Power 1 | . . 1 Propulsion . | . . . Utility 1 | . . 1 Weapon 3 | . . 3 Highest Loss Streak 5 | . . 5 Average Slot Usage (%) 96 | . 97 95 Engine 11 | . 14 10 Treads 8 | . . 11 Leg 15 | . 28 10 Device 4 | . 7 2 Storage 2 | . 6 . Processor 15 | . 12 17 Energy Gun 12 | . 18 9 Ballistic Gun 8 | . 9 7 Special Weapon 17 | . . 25 Naked Turns . | . . . Heaviest Build 15 | 13 13 15 Greatest Support 40 | 20 20 40 Greatest Overweight (x) . | . . . Average Overweight (x) . | . . . Largest Inventory Capacity 6 | 6 6 4 Average Capacity 4 | 5 4 4 Most Carried 6 | 6 6 4 Average Carried 3 | 2 4 3 Final Capacity 6 | 6 4 4 Final Carried 4 | 4 4 4 Class Distribution -------------------- 41% | Mutant 38% | Scavenger-Skirmisher 12% | Skirmisher 7% | Scavenger-Gunner Dominant Class ---------------- Mutant | -10/Materials Scavenger-Skirmisher | -9/Materials Resources | -11 -10 -9 ----------- Run | Scr Mat Mat Matter Collected 624 | 178 185 261 Remotely . | . . . Salvage Created 527 | . 256 271 Parts 43 | . 19 24 Haulers Intercepted 2 | . . 2 Recyclers Shooed . | . . . Parts Field Recycled . | . . . Retrieved Matter . | . . . Parts Self-Destructed . | . . . Prevented . | . . . Kills | -11 -10 -9 ------- Run | Scr Mat Mat Combat Hostiles Destroyed 13 | . 6 7 Guns 12 | . 6 6 AOE 1 | . . 1 Classes Destroyed 5 | . 3 2 Builder 1 | . . 1 Hauler 2 | . . 2 Watcher 3 | . 2 1 Swarmer 10 | . 3 7 Grunt 3 | . 3 . Best Kill Streak 7 | . 6 7 Combat Bots Only 7 | . 4 7 Max Kills in Single Turn 2 | . 1 2 Gunslinging 1 | . . 1 Exploded 1 | . . 1 Melee . | . . . Uniques/NPCs Destroyed . | . . . Combat | -11 -10 -9 -------- Run | Scr Mat Mat Damage Taken 534 | . 122 412 Core 56 | . . 56 Absorbed by Shields . | . . . Core Remaining (%) 100 | 100 100 . Volleys Fired 71 | . 23 48 Largest 4 | . 2 4 Hottest 143 | . 80 143 Shots Fired 226 | . 46 180 Gun 130 | . 46 84 Cannon . | . . . Launcher . | . . . Special 96 | . . 96 Kinetic 59 | . 13 46 Thermal 96 | . . 96 Explosive . | . . . Electromagnetic 71 | . 33 38 Robot Hit Streak 5 | . 4 5 Robot Miss Streak 5 | . 5 4 Penetration Max . | . . . Secondary Targets 4 | . . 4 Max Gunslinging Chain 2 | . . 2 Shots Hit Robots 74 | . 24 50 Core Hits 24 | . 10 14 Critical Hits 1 | . . 1 Critical Kills 1 | . . 1 Critical Parts Destroyed . | . . . Melee Attacks . | . . . Impact . | . . . Slashing . | . . . Piercing . | . . . Sneak Attacks . | . . . Combat Hostiles . | . . . Follow-up Attacks . | . . . Damage Inflicted 879 | . 346 533 Guns 745 | . 346 399 Cannons . | . . . Explosions 91 | . . 91 Melee . | . . . Ramming . | . . . Kinetic 250 | . 66 184 Thermal 134 | . . 134 Explosive . | . . . Electromagnetic 495 | . 280 215 Impact . | . . . Slashing . | . . . Piercing . | . . . Highest Corruption . | . . . Average Corruption . | . . . Corruption Purged . | . . . Overload Shots . | . . . Overflow Damage . | . . . Projectiles . | . . . Explosions . | . . . Melee . | . . . Knockbacks . | . . . Impact . | . . . Kinetic . | . . . Secondary . | . . . Self-Inflicted Damage 37 | . . 37 Shots 1 | . . 1 Rammed . | . . . Targets Rammed . | . . . Kicked . | . . . Crushed . | . . . Highest Temperature 318 | . 144 318 Average Temperature 116 | . 52 145 Received Heat Transfer 36 | . 36 . Effects 2 | . . 2 Interference 1 | . . 1 Damage (minor) 1 | . . 1 Siege Activations . | . . . Robots Corrupted . | . . . Combat Hostiles . | . . . Parts Fried 3 | . 3 . Impact Corruptions . | . . . Robots Melted . | . . . Combat Hostiles . | . . . Parts Melted . | . . . Heat Transferred 248 | . . 248 Parts Sabotaged . | . . . Parts Stolen . | . . . Parts Stripped . | . . . Power Chain Reactions 2 | . . 2 Missiles Intercepted . | . . . Alert | -11 -10 -9 ------- Run | Scr Mat Mat Peak Influence 369 | . 199 369 Initial 83 | . . 83 Average 171 | . 101 229 Maximum Alert Level 1 | . . 1 Low Security (%) 71 | 100 100 53 Level 1 28 | . . 46 Level 2 . | . . . Level 3 . | . . . Level 4 . | . . . Level 5 . | . . . High Security . | . . . Max Security . | . . . Squads Dispatched 1 | . 1 . Investigation . | . . . Extermination . | . . . Reinforcement 1 | . 1 . Assault . | . . . Garrison . | . . . Intercept . | . . . Construction Impeded . | . . . Haulers Reinforced . | . . . Stealth | -11 -10 -9 --------- Run | Scr Mat Mat Distress Signals 3 | . 2 1 Communications Jammed . | . . . Distress Signals . | . . . Times Spotted 28 | . 13 15 Peak Tracking Total 8 | . 7 8 Tactical Retreats 1 | . . 1 Traps | -11 -10 -9 ------- Run | Scr Mat Mat Traps Triggered . | . . . Indirectly . | . . . Trap Hack Attempts . | . . . Triggered . | . . . Disarmed . | . . . Reprogrammed . | . . . Reused . | . . . Traps Extracted . | . . . Installed . | . . . Triggered . | . . . Machines | -11 -10 -9 ---------- Run | Scr Mat Mat Machines Disabled 1 | . . 1 Max in Single Turn 1 | . . 1 Machines Sabotaged . | . . . Garrisons Compromised . | . . . Overloaded Fab Kills . | . . . Fab Network Shutdowns . | . . . Hacking | -11 -10 -9 --------- Run | Scr Mat Mat Machines Accessed . | . . . Terminals . | . . . Fabricators . | . . . Repair Stations . | . . . Recycling Units . | . . . Scanalyzers . | . . . Garrison Access . | . . . Total Hacks . | . . . Successful . | . . . Failed . | . . . Catastrophic . | . . . Database Lockouts . | . . . Manual . | . . . Terminals . | . . . Fabricators . | . . . Repair Stations . | . . . Recycling Units . | . . . Scanalyzers . | . . . Garrison Access . | . . . Terminal Hacks . | . . . Fabricator Hacks . | . . . Repair Station Hacks . | . . . Recycling Unit Hacks . | . . . Scanalyzer . | . . . Garrison Access Hacks . | . . . Unauthorized Hacks . | . . . Terminals . | . . . Fabricators . | . . . Repair Stations . | . . . Recycling Units . | . . . Scanalyzers . | . . . Garrison Access . | . . . Data Cores Recovered . | . . . Used . | . . . Hacking Detections . | . . . Full Trace Events . | . . . Feedback Events . | . . . Feedback Blocked . | . . . Robot Schematics Acquired . | . . . Robots Built . | . . . Matter . | . . . Time . | . . . Total Robot Build Rating . | . . . Part Schematics Acquired . | . . . Parts Built . | . . . Matter . | . . . Time . | . . . Total Part Build Rating . | . . . Parts Repaired . | . . . Time . | . . . Parts Recycled . | . . . Recycled Matter . | . . . Retrieved Matter . | . . . Retrieved Components . | . . . Parts Scanalyzed . | . . . Part Schematics Acquired . | . . . Parts Damaged . | . . . Bothacking | -11 -10 -9 ------------ Run | Scr Mat Mat Used RIF Installer . | . . . Robots Hacked . | . . . Non-combat . | . . . Combat . | . . . Robot Hacks Applied . | . . . Relay Couplers Released . | . . . Robots Rewired . | . . . Allies Hacked . | . . . Hacks Repelled . | . . . Allies | -11 -10 -9 -------- Run | Scr Mat Mat Total Allies . | . . . Largest Group . | . . . Highest-Rated Group . | . . . Highest-Rated Ally . | . . . Total Orders . | . . . Ally Attacks . | . . . Total Damage . | . . . Kills . | . . . Allies Corrupted . | . . . Allies Melted . | . . . Intel | -11 -10 -9 ------- Run | Scr Mat Mat Robot Analysis Total . | . . . Derelict Logs Recovered . | . . . Drone Launches . | . . . Drone Recoveries . | . . . Exploration | -11 -10 -9 ------------- Run | Scr Mat Mat Turns Passed 1004 | 93 288 623 Spaces Moved 404 | 68 143 193 Core 6 | 6 . . Treads 41 | . . 41 Legs 357 | 62 143 152 Wheels . | . . . Hover . | . . . Flight . | . . . Fastest Speed 50 | 50 120 120 Average Speed 123 | 113 120 128 Slowest Speed 160 | 120 120 160 Overloaded Moves . | . . . Propulsion Burnouts . | . . . Robots Hopped . | . . . Cave-ins Triggered . | . . . Exploration Rate (%) 16 | 4 27 18 Regions Visited 2 Branch Regions . Pre-discovered Areas . | . . . Known Exits Taken 1 | . 1 . Unknown Exits Taken 1 | 1 . . Scrap Searched . | . . . Spaces Dug . | . . . Terrain Destroyed 6 | . . 6 Melee . | . . . Projectile . | . . . AOE 6 | . . 6 Terrain Rammed . | . . . Walls Destroyed . | . . . Machines Disabled . | . . . Actions | -11 -10 -9 --------- Run | Scr Mat Mat Total 661 | 81 217 363 Wait 123 | . 28 95 Move 402 | 67 142 193 Hop . | . . . Pick Up 15 | 6 5 4 Fast Attach 20 | 6 4 10 Attach 4 | . 1 3 Detach 1 | . . 1 Swap 5 | . 4 1 Drop 20 | 2 10 8 Fire 71 | . 23 48 Melee . | . . . Ram . | . . . Kick . | . . . Crush . | . . . Escape Stasis . | . . . Rewire . | . . . Trap . | . . . Miscellaneous . | . . . Route ------- -11/Scrapyard -10/Materials -9/Materials History --------- Turn | Location | Event 12 | -11/Scrapyard | Discovered new exit (range 15) 94 | -11/Scrapyard | Entered Materials 313 | -10/Materials | Build established: Mutant 318 | -10/Materials | Discovered new exit (range 9) 377 | -10/Materials | Identified exit to Materials 382 | -10/Materials | Entered another Materials area 382 | -9/Materials | Evolved 2 slots: Weapon x2 557 | -9/Materials | Destroyed 7 combat bots 564 | -9/Materials | Lost 5 parts (1p1u3w) 921 | -9/Materials | Build established: Scavenger-Skirmisher 1005 | -9/Materials | Self-destructed Last Messages --------------- 00627_ U-05 Engineer lays Concrete. 00628_ K-01 Serf collects debris. 00629_ U-05 Engineer builds a Wall. 00631_ K-01 Serf collects debris. 00639_ Dropped Lgt. Assault Rifle. 00640_ Dropped Autogun. 00640_ Acquired Plasma Cutter. 00648_ Dropped Lgt. Ion Engine. 00649_ Acquired Plasma Cutter. 00660_ Acquired Transport Network Coupler. 00667_ Dropped Aluminum Leg. 00667_ K-01 Serf collects debris. 00667_ Acquired Lgt. Treads. 00672_ Dropped Aluminum Leg. 00672_ Acquired Lgt. Treads. 00675_ Acquired 82 matter. 00682_ U-05 Engineer lays Concrete. 00708_ K-01 Serf collects debris. 00715_ U-05 Engineer lays Concrete. 00717_ K-01 Serf collects debris. Map ----- +----------------------------------------------------+ | ??????????????????????????????????????? | | ??????????????????????????????????????? | | ??????????????????????????????????????? | | ??????????????????????????????????????? | | ??????????????????????????????????????? | | ??????????????????????????????????????? | | ??????????????????????????????????????? | | ??????????????????????????????????????? | | ??????????????????????????????????????? | | ??????????????????????????????????????? | | ??????????????????????????????????????? | | ??????????????????????????????????????? | | ??????????????????????????????????????? | | ??????????????????????????????????????? | | ??????????????????????????????????????? | | ??????????????????????????????????????? | | ??????????????????????????????????????? | | ??????????????????????????????????????? | | ??????????????????????????????????????? | | ??????????######??????????????????????? | | ??????????# #??????????????????????? | | ??????????# #??????????????????????? | | ???#####??# #??????????????????????? | | ???# #### [#??????????????????????? | | ???# + #??????????????????????? | | ???# #### ""@#??????????????????????? | | ???## ##??# Y" #??????????????????????? | | ????# #???# "" #??????????????????????? | | ????# #???# #??????? ???????????? | | ????# #???######??????? #??????????? | | ????# #???????????????? #??????????? | | ????# ################# #??????????? | | ????# #??????????? | | ????# #??????????? | | ????# """ """ #??????????? | | ????# """ "" #??????????? | | ????##### """ "" a #??????????? | | ????????# #??????????? | | ????????# " [#??????????? | | ????????# ! T #??????????? | | ????????# ] " +??????????? | | ????????# #??????????? | | ????????# #??????????? | | ????????############ +??????????? | | ???????????????????# #########???? | | ???????????????????# = # [[ #???? | | ???????????????????# !+! [ * #???? | | ???????????????????# = ]%%#[ | #???? | | ???????????????????#####%]# || #???? | | ???????????????????????# #########???? | +----------------------------------------------------+ Best States ------------- Heat Dissipation 28 Energy Generation 10 Energy Capacity 250 Matter Stores 300 Matter Capacity 300 Sight Range 18 Robot Scan Range 10 Terrain Scan Density 10 Evasion (%) 40 Recoil Reduction 2 Item Schematics ----------------- None Robot Schematics ------------------ None Fabricated ------------ Nothing Alien Tech Used ----------------- None Achievements -------------- None Challenges ------------ None Game ------ Seed QuantumSuspensionUnit Manual? 0 Play Time 00:13:18 Cumulative 24.4 hours Start 2022.02.21 @ 18:40:13 End 2022.02.21 @ 19:05:50 Sessions 1 Manual Loads 0 Difficulty Rogue Special Mode None Game No. 60 Rogue 60 Adventurer 0 Explorer 0 Win Type - Total 0 Types 0/0/0/0/0/0/0/0/0 Lore% 24 Gallery% 33 Achievement% 26 Wizard Run 0 Options --------- ASCII 0 Keyboard 0 Movement Mouse Keybinds 0 Fullscreen 1 Font 16/SmallcapsGlow Map View 76x50 Tactical HUD 1 Map Filters NONE Filters NONE Steam 1 RUN: 7bac97fa-61f6-4456-a2e9-d82b958012d4